bitfinex/quotes_BTCUSD_20250809
["timestamp","ask_amount","ask_price","bid_price","bid_amount"]
[1754716872110,0.00264034,116900.0,116890.0,1.6270345]
[1754716872406,0.00264034,116900.0,116890.0,2.04892961]
[1754716873482,0.16654597,116910.0,116900.0,0.01744902]
[1754716873692,0.16668782,116910.0,116900.0,0.68592624]
[1754716874129,0.16668782,116910.0,116900.0,0.95172624]
[1754716874332,0.16668782,116910.0,116900.0,0.52983113]
[1754716874538,0.16668782,116910.0,116900.0,0.95172624]
[1754716874930,0.16668782,116910.0,116900.0,0.87873723]
[1754716875193,0.16668782,116910.0,116900.0,1.10063234]
[1754716875408,0.16668782,116910.0,116900.0,0.92346332]
[1754716875623,0.16668782,116910.0,116900.0,0.81726332]
[1754716876074,0.16358782,116910.0,116900.0,1.01873463]
[1754716876295,0.00014185,116910.0,116900.0,1.03825365]
[1754716877216,0.00014185,116910.0,116900.0,1.37825365]
[1754716877436,0.00014185,116910.0,116900.0,1.57825365]
[1754716877864,0.00014185,116910.0,116900.0,1.15635854]
[1754716878078,0.00014185,116910.0,116900.0,1.57825365]
[1754716878297,0.00014185,116910.0,116900.0,1.60325365]
[1754716879537,1.479e-05,116910.0,116900.0,1.60325365]
[1754716880804,1.479e-05,116910.0,116900.0,1.63675365]
[1754716881373,1.479e-05,116910.0,116900.0,1.83640695]
[1754716881788,1.479e-05,116910.0,116900.0,2.25830206]
[1754716882031,1.479e-05,116910.0,116900.0,1.83640695]
[1754716882187,1.479e-05,116910.0,116900.0,2.25830206]
[1754716882401,1.479e-05,116910.0,116900.0,1.41451184]
[1754716882626,1.479e-05,116910.0,116900.0,1.83640695]
[1754716883522,0.01030479,116930.0,116920.0,1.49930736]
[1754716883731,0.01228479,116930.0,116920.0,2.01116947]
[1754716884117,0.01228479,116930.0,116920.0,2.43808458]
[1754716884324,0.01030479,116930.0,116920.0,2.43808458]
[1754716884522,0.01030479,116930.0,116920.0,2.3062895]
[1754716884740,0.01030479,116930.0,116920.0,2.43800458]
[1754716885149,0.01030479,116930.0,116920.0,1.59421436]
[1754716885536,0.01030479,116930.0,116920.0,2.46300458]
[1754716885948,0.01035204,116930.0,116920.0,1.61921436]
[1754716886232,0.01035204,116930.0,116920.0,2.46300458]
[1754716887516,0.01035204,116930.0,116920.0,2.48875553]
[1754716887950,0.01233204,116930.0,116920.0,2.06686042]
[1754716888348,0.01035204,116930.0,116920.0,1.64496531]
[1754716888733,0.01233204,116930.0,116920.0,2.06686042]
[1754716889350,0.01035204,116930.0,116920.0,2.06686042]
[1754716889575,0.01035204,116930.0,116920.0,2.22295553]
[1754716890224,0.01035204,116930.0,116920.0,1.37916531]
[1754716890417,0.01035204,116930.0,116920.0,2.22295553]
[1754716890615,0.01035204,116930.0,116920.0,2.23145553]
[1754716891080,0.01035204,116930.0,116920.0,2.07233553]
[1754716891479,0.01035204,116930.0,116920.0,2.43641553]
[1754716891699,0.01035204,116930.0,116920.0,1.59262531]
[1754716891916,0.01035204,116930.0,116920.0,2.43641553]
[1754716892874,0.01035204,116930.0,116920.0,2.01444042]
[1754716893567,8.677e-05,116930.0,116920.0,2.01444042]
[1754716894535,8.677e-05,116930.0,116920.0,2.43633553]
[1754716896051,8.677e-05,116930.0,116920.0,1.59254531]
[1754716896230,8.677e-05,116930.0,116920.0,1.59354531]
[1754716896442,8.677e-05,116930.0,116920.0,2.43733553]
[1754716896887,8.677e-05,116930.0,116920.0,2.43633553]
[1754716897094,1.115e-05,116930.0,116920.0,2.43733553]
[1754716897307,1.115e-05,116930.0,116920.0,2.43933553]
[1754716897522,1.115e-05,116930.0,116920.0,2.43733553]
[1754716897939,1.115e-05,116930.0,116920.0,2.46499045]
[1754716898148,1.115e-05,116930.0,116920.0,2.66464375]
[1754716898562,1.115e-05,116930.0,116920.0,1.82085353]
[1754716898769,1.115e-05,116930.0,116920.0,2.66464375]
[1754716900052,1.115e-05,116930.0,116920.0,2.50592375]
[1754716900265,1.115e-05,116930.0,116920.0,2.69007475]
[1754716900693,1.115e-05,116930.0,116920.0,1.84628453]
[1754716900909,1.115e-05,116930.0,116920.0,2.69007475]
[1754716901787,1.115e-05,116930.0,116920.0,1.84628453]
[1754716902010,1.115e-05,116930.0,116920.0,2.69007475]
[1754716902411,1.115e-05,116930.0,116920.0,2.69107475]
[1754716902542,1.115e-05,116930.0,116920.0,1.84728453]
[1754716902780,1.115e-05,116930.0,116920.0,2.66540375]
[1754716903439,0.05948436,116940.0,116930.0,0.52849152]
[1754716903643,0.06146436,116940.0,116930.0,1.46426874]
[1754716905244,0.06146436,116940.0,116930.0,1.46132874]
[1754716905646,0.06146436,116940.0,116930.0,1.46634874]
[1754716905880,0.05948436,116940.0,116930.0,1.46634874]
[1754716906451,0.03895554,116940.0,116930.0,1.46634874]
[1754716906662,0.01766945,116950.0,116940.0,0.73738299]
[1754716906843,0.01766945,116950.0,116940.0,1.40924021]
[1754716907105,0.01766945,116950.0,116940.0,1.67504021]
[1754716908228,0.01766945,116950.0,116940.0,2.01504021]
[1754716909065,0.01766945,116950.0,116940.0,2.21469351]
[1754716910114,0.01766945,116950.0,116940.0,2.23969351]
[1754716910731,0.01766945,116950.0,116940.0,2.26656059]
[1754716913388,0.00911761,116950.0,116940.0,1.86966548]
[1754716913594,0.26871381,116980.0,116970.0,0.87733913]
[1754716913803,0.26871381,116980.0,116970.0,1.54381635]
[1754716914011,0.26885562,116980.0,116970.0,1.37283234]
[1754716914634,0.27082562,116980.0,116970.0,1.37283234]
[1754716914829,0.27182562,116980.0,116970.0,1.37283234]
[1754716915655,0.27282562,116980.0,116970.0,1.37283234]
[1754716916060,0.27282562,116980.0,116970.0,0.95093723]
[1754716916283,0.27282562,116980.0,116970.0,1.37283234]
[1754716916973,0.27282562,116980.0,116970.0,1.38130445]
[1754716917179,0.203348,116980.0,116970.0,1.38130445]
[1754716917600,0.203348,116980.0,116970.0,1.13039335]
[1754716917752,0.203348,116980.0,116970.0,1.55228846]
[1754716917960,0.203348,116980.0,116970.0,1.38130445]
[1754716918378,0.203348,116980.0,116970.0,1.55228846]
[1754716919058,0.02382841,116980.0,116970.0,1.55739846]
[1754716919256,0.02382841,116980.0,116970.0,1.13550335]
[1754716919465,0.1947978,116980.0,116970.0,1.55739846]
[1754716919876,0.1928278,116980.0,116970.0,1.55739846]
[1754716920237,0.1918278,116980.0,116970.0,1.13550335]
[1754716920432,0.1937978,116980.0,116970.0,1.38641445]
[1754716920636,0.1937978,116980.0,116970.0,1.55739846]
[1754716921060,0.1927978,116980.0,116970.0,1.55739846]
[1754716921461,0.1947178,116980.0,116970.0,0.95904934]
[1754716921668,0.1927978,116980.0,116970.0,0.95904934]
[1754716922100,0.1927978,116980.0,116970.0,1.38396445]
[1754716922547,0.1927978,116980.0,116970.0,1.38094445]
[1754716922761,0.1927978,116980.0,116970.0,0.95904934]
[1754716922959,0.1927978,116980.0,116970.0,0.95892934]
[1754716923104,0.1947178,116980.0,116970.0,0.95892934]
[1754716923880,0.1947178,116980.0,116970.0,0.61892934]
[1754716924105,0.1947178,116980.0,116970.0,0.82412934]
[1754716924682,0.1947178,116980.0,116970.0,0.66688934]
[1754716924895,0.61661291,116980.0,116970.0,0.47514324]
[1754716925111,0.61661291,116980.0,116970.0,0.24402211]
[1754716925311,0.1947178,116980.0,116970.0,0.24402211]
[1754716925493,0.1908278,116980.0,116970.0,0.66591722]
[1754716925695,0.1927978,116980.0,116970.0,0.66591722]
[1754716925911,0.1927978,116980.0,116970.0,0.25270285]
[1754716925912,0.1947178,116980.0,116970.0,0.25270285]
[1754716926374,0.1927978,116980.0,116970.0,0.25270285]
[1754716926580,0.1937978,116980.0,116970.0,0.25270285]
[1754716926794,0.1947978,116980.0,116970.0,0.25270285]
[1754716926975,0.1947978,116980.0,116970.0,0.09554285]
[1754716927134,0.1947978,116980.0,116970.0,0.87975796]
[1754716927741,0.1947978,116980.0,116970.0,0.87963796]
[1754716928750,0.1947978,116980.0,116970.0,0.45778285]
[1754716928953,0.1947978,116980.0,116970.0,0.87967796]
[1754716929160,0.1947978,116980.0,116970.0,0.51743796]
[1754716929363,0.1947978,116980.0,116970.0,0.45770285]
[1754716929578,0.61861291,116980.0,116970.0,0.08686211]
[1754716929789,0.64208291,116980.0,116970.0,0.08686211]
[1754716930000,0.64208291,116980.0,116970.0,0.24378211]
[1754716930644,0.64108291,116980.0,116970.0,0.24378211]
[1754716930857,0.2191878,116980.0,116970.0,0.24378211]
[1754716931087,0.2201878,116980.0,116970.0,0.24378211]
[1754716931756,0.64408291,116980.0,116970.0,0.24378211]
[1754716932381,0.66975391,116980.0,116970.0,0.24378211]
[1754716933023,0.66975391,116980.0,116970.0,0.08686211]
[1754716933231,0.66975391,116980.0,116970.0,0.24370211]
[1754716933413,0.66975391,116980.0,116970.0,0.08686211]
[1754716933692,0.66975391,116980.0,116970.0,0.24362211]
[1754716934123,0.2478588,116980.0,116970.0,0.24362211]
[1754716934347,0.66975391,116980.0,116970.0,0.24362211]
[1754716934991,0.2478588,116980.0,116970.0,0.24362211]
[1754716935201,0.66975391,116980.0,116970.0,0.24362211]
[1754716938015,0.2478588,116980.0,116970.0,0.24362211]
[1754716938457,0.66975391,116980.0,116970.0,0.24362211]
[1754716939033,0.66975391,116980.0,116970.0,0.24362211]
[1754716940547,0.2478588,116980.0,116970.0,0.24362211]
[1754716940761,0.66975391,116980.0,116970.0,0.24362211]
[1754716943692,0.2478588,116980.0,116970.0,0.24362211]
[1754716943923,0.64628391,116980.0,116970.0,0.24362211]
[1754716944640,0.2243888,116980.0,116970.0,0.24362211]
[1754716944848,0.64628391,116980.0,116970.0,0.24362211]
[1754716946419,0.17101325,116950.0,116940.0,0.20824]
[1754716946661,0.17101325,116950.0,116940.0,0.45327211]
[1754716946862,0.17101325,116950.0,116940.0,1.02407332]
[1754716947076,0.17101325,116950.0,116940.0,1.22196827]
[1754716947286,0.17101325,116950.0,116940.0,0.80007316]
[1754716947497,0.17101325,116950.0,116940.0,1.0509404]
[1754716947714,0.17101325,116950.0,116940.0,1.22196827]
[1754716948309,0.17101325,116950.0,116940.0,1.0509404]
[1754716948454,0.17101325,116950.0,116940.0,0.62904529]
[1754716948660,0.17101325,116950.0,116940.0,1.05935821]
[1754716949111,0.17101325,116950.0,116940.0,1.03249113]
[1754716949502,0.17101325,116950.0,116940.0,0.61059602]
[1754716949685,0.17101325,116950.0,116940.0,1.03249113]
[1754716949890,0.17101325,116950.0,116940.0,0.8374631]
[1754716950097,0.17101325,116950.0,116940.0,1.25935821]
[1754716951490,0.17101325,116950.0,116940.0,1.36593999]
[1754716951694,0.17101099,116960.0,116940.0,1.7878351]
[1754716951905,0.17101099,116960.0,116950.0,0.50875722]
[1754716952135,0.17101099,116960.0,116950.0,0.51384722]
[1754716953308,0.17101099,116960.0,116950.0,0.68486047]
[1754716953510,0.17955698,116970.0,116960.0,0.51990473]
[1754716953690,0.17955698,116970.0,116960.0,1.20396097]
[1754716953930,0.17955698,116970.0,116960.0,0.61410723]
[1754716954155,0.17955698,116970.0,116960.0,1.03600234]
[1754716954814,0.18055698,116970.0,116960.0,0.61410723]
[1754716955026,0.18055698,116970.0,116960.0,1.03700234]
[1754716955392,0.18055698,116970.0,116960.0,0.61510723]
[1754716955558,0.18055698,116970.0,116960.0,1.03700234]
[1754716955959,0.17955698,116970.0,116960.0,1.03700234]
[1754716956381,0.17955698,116970.0,116960.0,0.61510723]
[1754716956602,0.17955698,116970.0,116960.0,1.03700234]
[1754716956836,0.17955698,116970.0,116960.0,1.30280234]
[1754716957193,0.17955698,116970.0,116960.0,0.88090723]
[1754716957676,0.17955698,116970.0,116960.0,1.30280234]
[1754716958846,0.17955698,116970.0,116960.0,0.88090723]
[1754716959071,0.17955698,116970.0,116960.0,1.30280234]
[1754716959284,0.17955698,116970.0,116960.0,0.88090723]
[1754716959490,0.17955698,116970.0,116960.0,1.30280234]
[1754716959667,0.17955698,116970.0,116960.0,0.88090723]
[1754716959864,0.17955698,116970.0,116960.0,1.30280234]
[1754716960071,0.17955698,116970.0,116960.0,1.05190586]
[1754716960320,0.1908278,116980.0,116960.0,1.47380097]
[1754716960502,0.17098401,116970.0,116960.0,0.96200375]
[1754716960722,0.17098401,116970.0,116960.0,1.04886586]
[1754716960941,0.1908278,116980.0,116960.0,1.04886586]
[1754716961154,0.01985841,116980.0,116970.0,0.27833514]
[1754716961368,0.01985841,116980.0,116970.0,0.28038514]
[1754716961369,0.1908278,116980.0,116970.0,0.28038514]
[1754716961782,0.1908278,116980.0,116970.0,0.70228025]
[1754716961922,0.01985841,116980.0,116970.0,1.04228025]
[1754716962124,0.00318988,116980.0,116970.0,0.62038514]
[1754716962333,0.00318988,116980.0,116970.0,1.04228025]
[1754716962779,0.00318988,116980.0,116970.0,1.24089181]
[1754716963242,0.00418988,116980.0,116970.0,1.24089181]
[1754716963632,0.00318988,116980.0,116970.0,1.24089181]
[1754716963930,0.00318988,116980.0,116970.0,1.24589181]
[1754716964189,0.17415927,116980.0,116970.0,1.04728025]
[1754716964355,0.00318988,116980.0,116970.0,1.24728025]
[1754716965671,0.00318988,116980.0,116970.0,1.40248025]
[1754716965882,0.00318988,116980.0,116970.0,0.98058514]
[1754716966085,0.00318988,116980.0,116970.0,1.40248025]
[1754716966289,0.00318988,116980.0,116970.0,0.98058514]
[1754716966488,0.00318988,116980.0,116970.0,1.40248025]
[1754716968636,0.00318988,116980.0,116970.0,1.84514733]
[1754716969874,0.00318988,116980.0,116970.0,2.04375889]
[1754716971276,0.00318988,116980.0,116970.0,1.84514733]
[1754716976131,0.00318988,116980.0,116970.0,1.85364733]
[1754716978594,0.00318988,116980.0,116970.0,1.56098025]
[1754716978952,0.00318988,116980.0,116970.0,1.55216338]
[1754716980242,0.00318988,116980.0,116970.0,1.54353123]
[1754716980767,0.00318988,116980.0,116970.0,1.12163612]
[1754716980946,0.00318988,116980.0,116970.0,1.56098025]
[1754716983206,0.00318988,116980.0,116970.0,1.13908514]
[1754716983348,0.00318988,116980.0,116970.0,1.56098025]
[1754716983564,0.00318988,116980.0,116970.0,1.76614025]
[1754716984318,0.00318988,116980.0,116970.0,1.96475181]
[1754716984556,0.17415927,116980.0,116970.0,1.05817269]
[1754716984736,0.17613927,116980.0,116970.0,1.2891378]
[1754716985203,0.17613927,116980.0,116970.0,1.80012181]
[1754716985417,0.17613927,116980.0,116970.0,1.60656025]
[1754716985418,0.00516988,116980.0,116970.0,1.60656025]
[1754716985600,0.17613927,116980.0,116970.0,1.18466514]
[1754716985862,0.17613927,116980.0,116970.0,1.60656025]
[1754716986511,0.17613927,116980.0,116970.0,1.18466514]
[1754716986721,0.17613927,116980.0,116970.0,1.43557624]
[1754716986968,0.17613927,116980.0,116970.0,1.43052624]
[1754716987626,0.17613927,116980.0,116970.0,1.00863113]
[1754716987838,0.17613927,116980.0,116970.0,1.43052624]
[1754716989277,0.17613927,116980.0,116970.0,1.43346624]
[1754716989936,0.17613927,116980.0,116970.0,1.43052624]
[1754716990156,0.17613927,116980.0,116970.0,1.00863113]
[1754716990367,0.17613927,116980.0,116970.0,1.00853002]
[1754716990524,0.17613927,116980.0,116970.0,1.43042513]
[1754716991189,0.17613927,116980.0,116970.0,1.00853002]
[1754716991403,0.17613927,116980.0,116970.0,1.43336513]
[1754716991955,0.17613927,116980.0,116970.0,1.41591611]
[1754716992927,0.17613927,116980.0,116970.0,1.41802611]
[1754716995971,0.00318988,116980.0,116970.0,1.58901012]
[1754716996193,0.00318988,116980.0,116970.0,1.60645914]
[1754716996418,0.00318988,116980.0,116970.0,1.63029234]
[1754716996615,0.00070196,116980.0,116970.0,1.60645914]
[1754716997057,0.0006558,116980.0,116970.0,1.18456403]
[1754716997262,0.0006558,116980.0,116970.0,1.75645914]
[1754716997478,0.0006558,116980.0,116970.0,1.9550707]
[1754716997877,0.0006558,116980.0,116970.0,1.53317559]
[1754716998079,0.0006558,116980.0,116970.0,1.9550707]
[1754717001459,0.0006558,116980.0,116970.0,2.2208707]
[1754717002211,0.0006558,116980.0,116970.0,2.02225914]
[1754717004574,0.00015513,116980.0,116970.0,2.02225914]
[1754717006376,0.00015513,116980.0,116970.0,1.6496163]
[1754717006576,0.00015513,116980.0,116970.0,2.07151141]
[1754717010717,0.00015513,116980.0,116970.0,2.09651141]
[1754717010929,0.00015513,116980.0,116970.0,2.07151141]
[1754717011110,0.00015513,116980.0,116970.0,2.12217041]
[1754717012620,4.042e-05,116980.0,116970.0,2.12217041]
[1754717013046,4.042e-05,116980.0,116970.0,2.10567041]
[1754717013255,4.042e-05,116980.0,116970.0,2.13067041]
[1754717013582,4.042e-05,116980.0,116970.0,2.10567041]
[1754717013801,4.042e-05,116980.0,116970.0,2.13067041]
[1754717015872,4.042e-05,116980.0,116970.0,2.35251596]
[1754717016117,4.042e-05,116980.0,116970.0,2.37751596]
[1754717017166,4.042e-05,116980.0,116970.0,2.79941107]
[1754717017424,4.042e-05,116980.0,116970.0,2.37751596]
[1754717018685,0.00520069,117000.0,116990.0,0.7373099]
[1754717018887,0.00524793,117000.0,116990.0,1.61868505]
[1754717019090,0.00524793,117000.0,116990.0,2.46561527]
[1754717020137,0.00524793,117000.0,116990.0,2.2919173]
[1754717020718,0.00136803,117000.0,116990.0,1.44812708]
[1754717020929,0.00136803,117000.0,116990.0,2.2929173]
[1754717021261,0.20143282,117030.0,117020.0,0.51981705]
[1754717021262,0.01187659,117030.0,117020.0,0.51981705]
[1754717021466,0.01390383,117030.0,117020.0,1.20675963]
[1754717023595,0.18580018,117030.0,117020.0,1.20675963]
[1754717023814,0.18772018,117030.0,117020.0,0.68344868]
[1754717024026,0.18772018,117030.0,117020.0,0.68678258]
[1754717024254,0.21152018,117030.0,117020.0,0.26488747]
[1754717024471,0.21152018,117030.0,117020.0,0.83568868]
[1754717024999,0.21152018,117030.0,117020.0,0.68678258]
[1754717025213,0.21152018,117030.0,117020.0,0.53454258]
[1754717025422,0.21152018,117030.0,117020.0,0.26484747]
[1754717026633,0.21152018,117030.0,117020.0,0.08686211]
[1754717026854,0.21152018,117030.0,117020.0,0.23902211]
[1754717028072,0.21152018,117030.0,117020.0,0.66091722]
[1754717028770,0.21152018,117030.0,117020.0,0.23902211]
[1754717029027,0.21152018,117030.0,117020.0,0.66091722]
[1754717030013,0.21152018,117030.0,117020.0,0.68656924]
[1754717030435,0.21152018,117030.0,117020.0,0.26467413]
[1754717030633,0.21152018,117030.0,117020.0,0.68656924]
[1754717031033,0.21152018,117030.0,117020.0,0.26467413]
[1754717031238,0.20126194,117030.0,117020.0,0.68656924]
[1754717032153,0.20126194,117030.0,117020.0,0.23902211]
[1754717032453,0.20126194,117030.0,117020.0,0.23878211]
[1754717037836,0.22692094,117030.0,117020.0,0.23878211]
[1754717038672,0.20312094,117030.0,117020.0,0.23878211]
[1754717039042,0.20120094,117030.0,117020.0,0.66067722]
[1754717039251,0.17554194,117030.0,117020.0,0.66067722]
[1754717039446,0.20120094,117030.0,117020.0,0.66067722]
[1754717039654,0.17554194,117030.0,117020.0,0.66067722]
[1754717040030,0.17554194,117030.0,117020.0,0.23878211]
[1754717040834,0.20120094,117030.0,117020.0,0.66067722]
[1754717041287,0.20120094,117030.0,117020.0,0.23878211]
[1754717041995,0.19922094,117030.0,117020.0,0.66579722]
[1754717042248,0.17356194,117030.0,117020.0,0.66579722]
[1754717042875,0.16330341,117030.0,117020.0,0.66579722]
[1754717045516,0.16330341,117030.0,117020.0,0.24390211]
[1754717045731,0.16330341,117030.0,117020.0,0.66579722]
[1754717045952,0.16522341,117030.0,117020.0,0.08686211]
[1754717046164,0.16522341,117030.0,117020.0,0.23818211]
[1754717050559,0.16714341,117030.0,117020.0,0.23818211]
[1754717050919,0.58903852,117030.0,117020.0,0.08686211]
[1754717051072,0.58903852,117030.0,117020.0,0.23794211]
[1754717051447,0.16714341,117030.0,117020.0,0.23794211]
[1754717052349,0.58903852,117030.0,117020.0,0.23794211]
[1754717053349,0.16522341,117030.0,117020.0,0.23794211]
[1754717053565,0.16330341,117030.0,117020.0,0.66495722]
[1754717053972,0.16330341,117030.0,117020.0,0.24306211]
[1754717054408,0.16330341,117030.0,117020.0,0.66495722]
[1754717054617,0.16230341,117030.0,117020.0,0.24306211]
[1754717055173,0.16430341,117030.0,117020.0,0.24306211]
[1754717055387,0.16330341,117030.0,117020.0,0.24306211]
[1754717055616,0.16230341,117030.0,117020.0,0.24306211]
[1754717055819,0.16430341,117030.0,117020.0,0.24306211]
[1754717056037,0.16630341,117030.0,117020.0,0.24306211]
[1754717056246,0.16828341,117030.0,117020.0,0.24306211]
[1754717056848,0.16828341,117030.0,117020.0,0.23794211]
[1754717058598,0.16828341,117030.0,117020.0,0.24306211]
[1754717058800,0.16630341,117030.0,117020.0,0.24306211]
[1754717059233,0.16630341,117030.0,117020.0,0.66495722]
[1754717059677,0.16828341,117030.0,117020.0,0.24306211]
[1754717059989,0.16828341,117030.0,117020.0,0.23794211]
[1754717061057,0.16828341,117030.0,117020.0,0.24090211]
[1754717061459,0.16828341,117030.0,117020.0,0.24291211]
[1754717061876,0.16630341,117030.0,117020.0,0.66480722]
[1754717062122,0.16630341,117030.0,117020.0,0.24291211]
[1754717062267,0.16630341,117030.0,117020.0,0.66480722]
[1754717062468,0.16630341,117030.0,117020.0,0.24291211]
[1754717063528,0.16630341,117030.0,117020.0,0.66480722]
[1754717066146,0.16630341,117030.0,117020.0,0.24291211]
[1754717066276,0.16630341,117030.0,117020.0,0.66480722]
[1754717067149,0.16630341,117030.0,117020.0,0.24291211]
[1754717067371,0.16630341,117030.0,117020.0,0.66480722]
[1754717068206,0.16430341,117030.0,117020.0,0.66480722]
[1754717068650,0.16530341,117030.0,117020.0,0.66480722]
[1754717069876,0.16330341,117030.0,117020.0,0.66480722]
[1754717070489,0.16330341,117030.0,117020.0,0.24291211]
[1754717070663,0.16330341,117030.0,117020.0,0.66480722]
[1754717071929,0.16430341,117030.0,117020.0,0.66480722]
[1754717073152,0.16430341,117030.0,117020.0,0.24291211]
[1754717073330,0.16430341,117030.0,117020.0,0.66480722]
[1754717075587,0.16430341,117030.0,117020.0,0.24291211]
[1754717075786,0.16330341,117030.0,117020.0,0.66480722]
[1754717076603,0.16330341,117030.0,117020.0,0.24291211]
[1754717076739,0.16330341,117030.0,117020.0,0.81371332]
[1754717076962,0.16430341,117030.0,117020.0,0.81371332]
[1754717077211,0.16430341,117030.0,117020.0,0.39181821]
[1754717077415,0.16430341,117030.0,117020.0,0.81371332]
[1754717078032,0.16330341,117030.0,117020.0,0.81371332]
[1754717078263,0.16330341,117030.0,117020.0,0.81471332]
[1754717079242,0.16230341,117030.0,117020.0,0.81471332]
[1754717081026,0.16230341,117030.0,117020.0,0.39281821]
[1754717081234,0.16230341,117030.0,117020.0,0.81471332]
[1754717081966,0.16230341,117030.0,117020.0,0.39281821]
[1754717082140,0.16230341,117030.0,117020.0,0.81471332]
[1754717082949,0.16230341,117030.0,117020.0,0.39281821]
[1754717083166,0.16230341,117030.0,117020.0,0.81471332]
[1754717084028,0.16230341,117030.0,117020.0,0.39281821]
[1754717084232,0.16230341,117030.0,117020.0,0.81471332]
[1754717085941,0.16230341,117030.0,117020.0,0.39281821]
[1754717086225,0.16230341,117030.0,117020.0,0.81471332]
[1754717087175,0.16821841,117030.0,117020.0,0.81471332]
[1754717089210,0.16821841,117030.0,117020.0,0.84145975]
[1754717090574,0.16821841,117030.0,117020.0,1.0123707]
[1754717093288,0.16821841,117030.0,117020.0,0.84145975]
[1754717093912,0.16821841,117030.0,117020.0,0.41956464]
[1754717094131,0.16821841,117030.0,117020.0,0.81471332]
[1754717096083,0.16821841,117030.0,117020.0,0.66580722]
[1754717096297,0.16821841,117030.0,117020.0,0.81471332]
[1754717098957,0.16821841,117030.0,117020.0,1.08051332]
[1754717099186,0.17019841,117030.0,117020.0,0.65565821]
[1754717099396,0.17019841,117030.0,117020.0,1.07554332]
[1754717100169,0.17019841,117030.0,117020.0,0.65364821]
[1754717100369,0.17019841,117030.0,117020.0,1.07554332]
[1754717100955,0.17119841,117030.0,117020.0,1.07554332]
[1754717101162,0.17119841,117030.0,117020.0,1.07454332]
[1754717101540,0.17219841,117030.0,117020.0,1.07454332]
[1754717101737,0.17219841,117030.0,117020.0,1.07764332]
[1754717102574,0.17219841,117030.0,117020.0,1.07970332]
[1754717102794,0.17021841,117030.0,117020.0,0.65780821]
[1754717103036,0.17021841,117030.0,117020.0,1.07970332]
[1754717103364,0.17421841,117030.0,117020.0,1.07970332]
[1754717104635,0.17421841,117030.0,117020.0,0.65780821]
[1754717104885,0.17421841,117030.0,117020.0,0.81390332]
[1754717105068,0.17421841,117030.0,117020.0,0.39200821]
[1754717105290,0.17421841,117030.0,117020.0,0.65766332]
[1754717105495,0.59803352,117030.0,117020.0,0.08686211]
[1754717105699,0.17613841,117030.0,117020.0,0.23578211]
[1754717106105,0.62369252,117030.0,117020.0,0.23578211]
[1754717106438,0.64818252,117030.0,117020.0,0.23578211]
[1754717106665,0.64818252,117030.0,117000.0,0.20512]
[1754717106666,0.17092556,117010.0,117000.0,0.20512]
[1754717106880,0.17284556,117010.0,117000.0,0.29198211]
[1754717107091,0.17284556,117010.0,117000.0,0.44082211]
[1754717107528,0.17876056,117010.0,117000.0,0.44082211]
[1754717108159,0.17876056,117010.0,117000.0,0.44282211]
[1754717109419,0.17876056,117010.0,117000.0,0.44382211]
[1754717110068,0.18068056,117010.0,117000.0,0.44382211]
[1754717110493,0.20634456,117010.0,117000.0,0.44370211]
[1754717111134,0.20634456,117010.0,117000.0,0.44170211]
[1754717111773,0.20634456,117010.0,117000.0,0.44070211]
[1754717111980,0.20442456,117010.0,117000.0,0.44070211]
[1754717113233,0.20634456,117010.0,117000.0,0.29198211]
[1754717113410,0.20442456,117010.0,117000.0,0.44066211]
[1754717114840,0.20634456,117010.0,117000.0,0.44066211]
[1754717115153,0.62823967,117010.0,117000.0,0.44066211]
[1754717116190,0.62823967,117010.0,117000.0,0.44054211]
[1754717116397,0.96823967,117010.0,117000.0,0.23542211]
[1754717116964,0.96823967,117010.0,117000.0,0.14856]
[1754717117165,0.17096939,116980.0,116970.0,0.73543154]
[1754717117380,0.17298939,116980.0,116970.0,0.24034211]
[1754717118025,0.17298939,116980.0,116970.0,0.24344211]
[1754717118229,0.17298939,116980.0,116970.0,0.24550211]
[1754717118429,0.17096939,116980.0,116970.0,0.24244935]
[1754717118632,0.17096939,116980.0,116970.0,0.24754935]
[1754717118833,0.17096939,116980.0,116970.0,0.66944446]
[1754717119206,0.17096939,116980.0,116970.0,0.67044446]
[1754717119409,0.17096939,116980.0,116970.0,0.66844446]
[1754717119637,0.17104939,116980.0,116970.0,0.24554935]
[1754717119868,0.17104939,116980.0,116970.0,0.24038935]
[1754717120820,0.17098401,116970.0,116960.0,0.1]
[1754717121022,0.17108401,116970.0,116960.0,0.24840724]
[1754717121548,0.17108401,116970.0,116960.0,0.25155724]
[1754717122234,0.17108401,116970.0,116960.0,0.25371724]
[1754717122844,0.17108401,116970.0,116960.0,0.24840724]
[1754717123048,0.24954686,116970.0,116960.0,0.24840724]
[1754717123573,0.59485912,116970.0,116960.0,0.24840724]
[1754717123776,0.17296401,116970.0,116960.0,0.24840724]
[1754717123978,0.59485912,116970.0,116960.0,0.24840724]
[1754717124173,0.17296401,116970.0,116960.0,0.24840724]
[1754717125574,0.17296401,116970.0,116960.0,1e-08]
[1754717125781,0.64407246,116970.0,116960.0,1e-08]
[1754717126197,0.19041303,116970.0,116960.0,1e-08]
[1754717126404,0.61230814,116970.0,116960.0,1e-08]
[1754717127347,0.17103997,116940.0,116930.0,0.00315]
[1754717127556,0.17103997,116940.0,116930.0,0.15347]
[1754717128167,0.17103997,116940.0,116930.0,0.57536511]
[1754717128738,0.17103997,116940.0,116930.0,0.67086673]
[1754717128940,0.17103997,116940.0,116930.0,0.74034435]
[1754717129115,0.17103997,116940.0,116930.0,0.67086673]
[1754717132117,0.17103997,116940.0,116930.0,0.67386673]
[1754717133132,0.17103997,116940.0,116930.0,0.82277283]
[1754717133480,0.17103997,116940.0,116930.0,1.25961533]
[1754717133485,0.17956391,116950.0,116930.0,0.99381533]
[1754717133815,0.17099863,116960.0,116940.0,0.88293509]
[1754717134090,0.17099863,116960.0,116950.0,0.80778332]
[1754717134620,0.17099863,116960.0,116950.0,0.81093332]
[1754717135455,0.17099863,116960.0,116950.0,0.98194657]
[1754717135998,0.17965421,116970.0,116950.0,1.40384168]
[1754717135999,0.17965421,116970.0,116960.0,0.37099863]
[1754717136342,0.000121,116970.0,116960.0,1.50696096]
[1754717136553,0.000121,116970.0,116960.0,2.05220096]
[1754717137915,0.17110501,116970.0,116960.0,2.05220096]
[1754717138137,0.17110501,116970.0,116960.0,1.46030722]
[1754717138366,0.17110501,116970.0,116960.0,1.88220233]
[1754717138787,0.17110501,116970.0,116960.0,1.03841211]
[1754717138971,0.17110501,116970.0,116960.0,1.03941211]
[1754717139234,0.17110501,116970.0,116960.0,1.21021332]
[1754717141028,0.17110501,116970.0,116960.0,1.35793332]
[1754717141239,0.17110501,116970.0,116960.0,1.77982843]
[1754717142365,0.17110501,116970.0,116960.0,1.35793332]
[1754717144689,0.17110501,116970.0,116960.0,0.93603821]
[1754717144897,0.17110501,116970.0,116960.0,1.35793332]
[1754717145763,0.17110501,116970.0,116960.0,0.93603821]
[1754717145988,0.17110501,116970.0,116960.0,1.35793332]
[1754717147108,0.000121,116970.0,116960.0,1.95082706]
[1754717147533,1.423e-05,116970.0,116960.0,1.95082706]
[1754717149265,1.423e-05,116970.0,116960.0,2.21662706]
[1754717149488,1.423e-05,116970.0,116960.0,1.37283684]
[1754717149699,1.423e-05,116970.0,116960.0,2.21662706]
[1754717154109,0.17099824,116970.0,116960.0,2.21662706]
[1754717155741,1.423e-05,116970.0,116960.0,2.21662706]